Cogmind - Beta 17 @@@ ROGUE MODE // 2026.07.28 @ 20:48:11 Player: Akl Result: Destroyed by D-53 Grenadier with Mini Grenade Launcher Performance ------------- Evolutions (1) 500 Regions Visited (3) 600 Robots Destroyed (34) 170 Value Destroyed (907) 907 Prototype IDs (4) 80 Alien Tech Used (0) 0 Bonus (0) 0 TOTAL SCORE: 2257 Bonus ------- None Cogmind --------- Core Integrity 0/400 Matter 285/300 Energy 100/100 System Corruption 3% Temperature Cool (24) Movement Core (250) Ox4 Location -9/Mines Parts ------- > --- POWER (1) -------- (None) > --- PROPULSION (2) --- (None) > --- UTILITY (4) ------ Heat Sink Small Storage Unit > --- WEAPON (2) ------- Beam Rifle Particle Cannon > --- INVENTORY (8) ---- Ion Engine Aluminum Leg Aluminum Leg Improved Aluminum Leg Particle Gun Heavy Assault Rifle Peak State ------------ > --- POWER ------------ Light Nuclear Core > --- PROPULSION ------- Aluminum Leg Aluminum Leg > --- UTILITY ---------- Heat Sink Small Storage Unit Targeting Computer ECM Suite > --- WEAPON ----------- Particle Gun Light Assault Rifle > --- INVENTORY -------- Ion Engine Ion Engine Particle Cannon Grenade Launcher [Rating: 12] Favorites ----------- Power Ion Engine Engine Ion Engine Power Core Light Nuclear Core Propulsion Aluminum Leg Treads Light Treads Leg Aluminum Leg Wheel Wheel Hover Unit Hover Unit Utility ECM Suite Device ECM Suite Storage Small Storage Unit Processor Targeting Computer Weapon EM Pulse Gun Energy Gun EM Pulse Gun Energy Cannon Particle Cannon Ballistic Gun Light Assault Rifle Launcher Grenade Launcher Build | -11 -10 -9 -9 ------- Run | Yrd Mat Mat Min Slots Evolved 2 | . . 2 . Power . | . . . . Propulsion . | . . . . Utility 2 | . . 2 . Weapon . | . . . . Parts Attached 28 | 4 2 20 2 Power 4 | . 1 2 1 Engine 3 | . 1 1 1 Core 1 | . . 1 . Reactor . | . . . . Propulsion 9 | 2 . 7 . Treads 2 | . . 2 . Leg 4 | 1 . 3 . Wheel 2 | 1 . 1 . Hover 1 | . . 1 . Flight . | . . . . Utility 5 | . 1 4 . Device 3 | . 1 2 . Storage 1 | . . 1 . Processor 1 | . . 1 . Hackware . | . . . . Protection . | . . . . Artifact . | . . . . Weapon 10 | 2 . 7 1 Energy Gun 5 | 2 . 3 . Energy Cannon 1 | . . 1 . Ballistic Gun 2 | . . 2 . Ballistic Cannon . | . . . . Launcher 2 | . . 1 1 Special Weapon . | . . . . Impact Weapon . | . . . . Slashing Weapon . | . . . . Piercing Weapon . | . . . . Special Melee Weapon . | . . . . Unidentified Prototypes . | . . . . Parts Lost 17 | . . 10 7 Power 3 | . . 1 2 Propulsion 5 | . . 3 2 Utility 3 | . . 2 1 Weapon 6 | . . 4 2 Highest Loss Streak 6 | . . 6 4 To Critical Strikes . | . . . . Average Backups 5 | 2 4 4 7 Power 1 | 1 1 1 1 Propulsion . | . . . 3 Utility . | . 1 . . Weapon 2 | 1 1 2 2 Tool/Special . | . . . . Unused Backups 4 | . . . 4 Power 1 | . . . 1 Propulsion 2 | . . . 2 Utility . | . . . . Weapon 1 | . . . 1 Tool/Special . | . . . . Average Slot Usage (%) 75 | . 69 77 75 Engine 5 | . 7 3 5 Core 4 | . . 6 4 Treads 6 | . . 3 16 Leg 8 | . 14 11 . Wheel 4 | . 14 3 . Device 15 | . 5 19 16 Storage 6 | . . 5 11 Energy Gun 17 | . 28 13 15 Ballistic Gun 3 | . . 6 . Launcher 2 | . . . 6 Peak Build Rating 12 | 4 6 12 12 Average Rating 8 | 1 4 9 9 On Entrance 5 | . 4 6 12 Avg Prop Armor Cover (%) 8 | 10 9 8 . Naked Turns . | . . . . Heaviest Build 19 | 4 11 19 19 Greatest Support 40 | 10 10 40 40 Greatest Overweight (x) 5 | . 1 5 . Average Overweight (x) . | . . . . Largest Inventory Capacity 8 | 5 5 8 8 Average Capacity 6 | 5 5 6 8 Most Carried 8 | 5 5 8 8 Average Carried 5 | 2 4 4 7 Final Capacity 8 | 5 5 8 8 Final Carried 8 | 3 4 8 6 Class Distribution -------------------- 56% | Scavenger-Mutant 43% | Mutant Dominant Class ---------------- Mutant | -10/Materials Scavenger-Mutant | -9/Materials Scavenger-Mutant | -9/Mines Resources | -11 -10 -9 -9 ----------- Run | Yrd Mat Mat Min Matter Collected 525 | 240 10 218 57 Remotely . | . . . . Salvage Created 987 | . 84 803 100 Parts 70 | . 4 62 4 Haulers Intercepted . | . . . . Recyclers Shooed 1 | . . 1 . Parts Field Recycled . | . . . . Retrieved Matter . | . . . . Parts Self-Destructed . | . . . . Prevented . | . . . . Parts Restored . | . . . . Kills | -11 -10 -9 -9 ------- Run | Yrd Mat Mat Min Combat Hostiles Destroyed 27 | . 2 19 6 Guns 16 | . 1 12 3 Cannons 2 | . . 2 . AOE 7 | . . 4 3 Classes Destroyed 11 | . 1 8 2 Worker 1 | . . 1 . Builder 2 | . . 2 . Tunneler 1 | . . . 1 Recycler 1 | . . 1 . Watcher 4 | . . 4 . Swarmer 5 | . . 5 . Grunt 14 | . 2 10 2 Brawler 1 | . . 1 . Duelist 3 | . . 1 2 Sentry 2 | . . 2 . Assembled 2 | . . . 2 Best Kill Streak 12 | . 1 12 3 Combat Bots Only 5 | . 2 5 3 Max Kills in Single Turn 4 | . 1 4 2 Gunslinging . | . . . . Exploded 2 | . . 2 2 Melee . | . . . . Uniques/NPCs Destroyed . | . . . . Combat | -11 -10 -9 -9 -------- Run | Yrd Mat Mat Min Hostile Shots Fired 153 | . 9 113 31 Missed 32 | . 4 21 7 Hits 121 | . 5 92 24 Melee 10 | . . 2 8 Projectile 111 | . 5 90 16 AOE 6 | . . . 6 Critical Strikes 3 | . . 3 . Damage Taken 1979 | . 97 1195 687 Core 418 | . 2 292 124 Absorbed by Shields . | . . . . Core Remaining (%) 99 | 100 99 . . Volleys Fired 77 | . 7 60 10 Largest 2 | . 2 2 2 Hottest 124 | . 80 121 124 Shots Fired 129 | . 12 99 18 Gun 116 | . 12 92 12 Cannon 5 | . . 3 2 Launcher 8 | . . 4 4 Special . | . . . . Kinetic 32 | . . 32 . Thermal 42 | . . 28 14 Explosive 8 | . . 4 4 Electromagnetic 47 | . 12 35 . Robot Hit Streak 16 | . 4 16 4 Robot Miss Streak 3 | . 1 3 1 Penetration Max . | . . . . Secondary Targets 1 | . . . 1 Max Gunslinging Chain 1 | . . . 1 Shots Hit Robots 91 | . 9 70 12 Core Hits 61 | . 2 45 14 Critical Kills . | . . . . Critical Parts Destroyed . | . . . . Critical Strikes . | . . . . Melee Attacks . | . . . . Impact . | . . . . Slashing . | . . . . Piercing . | . . . . Sneak Attacks . | . . . . Combat Hostiles . | . . . . Follow-up Attacks . | . . . . Damage Inflicted 2048 | . 119 1403 526 Guns 1036 | . 119 783 134 Cannons 84 | . . 42 42 Explosions 911 | . . 561 350 Melee . | . . . . Ramming 17 | . . 17 . Kinetic 206 | . . 206 . Thermal 479 | . . 303 176 Explosive 911 | . . 561 350 Electromagnetic 435 | . 119 316 . Impact . | . . . . Slashing . | . . . . Piercing . | . . . . Highest Corruption 3 | . . 3 3 Average Corruption 3 | . . 3 3 Corruption Purged . | . . . . Corruption Blocked . | . . . . Effects 8 | . . 3 5 Matter Fused 2 | . . 1 1 Heat Flow Errors 4 | . . 2 2 Energy Discharges 1 | . . . 1 Alerts 1 | . . . 1 Overload Shots . | . . . . Overflow Damage 47 | . . 10 37 Projectiles . | . . . . Explosions 47 | . . 10 37 Melee . | . . . . Knockbacks . | . . . . Impact . | . . . . Kinetic . | . . . . Secondary . | . . . . Self-Inflicted Damage 130 | . . 66 64 Shots 5 | . . 2 3 Rammed 7 | . . 6 1 Targets Rammed 9 | . . 8 1 Kicked 2 | . . 2 . Crushed . | . . . . Highest Temperature 248 | . 45 248 128 Average Temperature 49 | . 23 55 38 Received Heat Transfer 573 | . 30 483 60 Siege Activations . | . . . . Martial Activations . | . . . . Shielding Activations . | . . . . Robots Disrupted . | . . . . Combat Hostiles . | . . . . Robots Corrupted 2 | . 1 1 . Combat Hostiles 2 | . 1 1 . Parts Fried 3 | . 1 2 . Impact Corruptions . | . . . . Robots Melted . | . . . . Combat Hostiles . | . . . . Parts Melted 2 | . . 1 1 Heat Transferred 1110 | . . 703 407 Parts Sabotaged . | . . . . Parts Stolen . | . . . . Parts Stripped . | . . . . Power Chain Reactions . | . . . . Alert | -11 -10 -9 -9 ------- Run | Yrd Mat Mat Min Maximum Alert Level 1 | . . 1 . Low Security (%) 97 | 100 100 96 100 Level 1 2 | . . 3 . Level 2 . | . . . . Level 3 . | . . . . Level 4 . | . . . . Level 5 . | . . . . High Security . | . . . . Max Security . | . . . . Peak Influence 221 | . 30 221 94 Initial 82 | . . . 82 Average 41 | . 4 50 56 Influence Increases 717 | . 46 546 125 Destroy 0b10 Robot/C 500 | . 40 380 80 Destroy 0b10 Robot/NC 45 | . . 40 5 Destroy Leader 108 | . . 88 20 Successful Hack 26 | . 6 20 . Destroy Structure 38 | . . 18 20 Influence Decreases 717 | . 46 333 338 Entered New Map 131 | . . . 131 Time Decay 420 | . 46 234 140 Lost Part 166 | . . 99 67 Squads Dispatched 1 | . . 1 . Investigation . | . . . . Extermination . | . . . . Reinforcement 1 | . . 1 . Assault . | . . . . Garrison . | . . . . Intercept . | . . . . Searches Triggered . | . . . . Construction Impeded 1 | . . 1 . Haulers Reinforced . | . . . . Active Scanning Responses . | . . . . Cargo Convoy Interrupts . | . . . . Stealth | -11 -10 -9 -9 --------- Run | Yrd Mat Mat Min Distress Signals 7 | . . 7 . Communications Jammed . | . . . . Distress Signals . | . . . . Times Spotted 59 | . 5 39 15 Peak Tracking Total 11 | . 4 8 11 Tactical Retreats 7 | . . 7 . ECM-based Alert Blocks 10 | . . 10 . Traps | -11 -10 -9 -9 ------- Run | Yrd Mat Mat Min Traps Triggered 1 | . 1 . . Indirectly . | . . . . Trap Hack Attempts . | . . . . Triggered . | . . . . Disarmed . | . . . . Reprogrammed . | . . . . Reused . | . . . . Traps Extracted . | . . . . Installed . | . . . . Triggered . | . . . . Machines | -11 -10 -9 -9 ---------- Run | Yrd Mat Mat Min Machines Disabled 2 | . . 2 . Max in Single Turn 2 | . . 2 . Machines Repaired . | . . . . Machines Dismantled . | . . . . Machines Sabotaged . | . . . . Overloaded Fab Kills . | . . . . Hacking | -11 -10 -9 -9 --------- Run | Yrd Mat Mat Min Machines Accessed 4 | . 2 2 . Terminals 4 | . 2 2 . Fabricators . | . . . . Repair Stations . | . . . . Recycling Units . | . . . . Scanalyzers . | . . . . Garrison Access . | . . . . Total Hacks 11 | . 6 5 . Successful 5 | . 3 2 . Failed 6 | . 3 3 . Catastrophic 1 | . . 1 . Database Lockouts . | . . . . Manual 6 | . 4 2 . Terminals 11 | . 6 5 . Fabricators . | . . . . Repair Stations . | . . . . Recycling Units . | . . . . Scanalyzers . | . . . . Garrison Access . | . . . . Terminal Hacks 5 | . 3 2 . Prototype ID Bank 3 | . 2 1 . Locate Traps 1 | . 1 . . Zone Layout 1 | . . 1 . Fabricator Hacks . | . . . . Repair Station Hacks . | . . . . Recycling Unit Hacks . | . . . . Scanalyzer . | . . . . Garrison Access Hacks . | . . . . Unauthorized Hacks . | . . . . Terminals . | . . . . Fabricators . | . . . . Repair Stations . | . . . . Recycling Units . | . . . . Scanalyzers . | . . . . Garrison Access . | . . . . Data Cores Recovered . | . . . . Used . | . . . . Hacking Detections 4 | . 2 2 . Full Trace Events . | . . . . Feedback Events . | . . . . Feedback Blocked . | . . . . Robot Schematics Acquired . | . . . . Robots Built . | . . . . Authchips . | . . . . Time . | . . . . Total Robot Build Rating . | . . . . Part Schematics Acquired . | . . . . Parts Built . | . . . . Authchips . | . . . . Time . | . . . . Total Part Build Rating . | . . . . Part Studies Acquired . | . . . . Parts Repaired . | . . . . Time . | . . . . Parts Recycled . | . . . . Recycled Matter . | . . . . Retrieved Matter . | . . . . Retrieved Components . | . . . . Parts Scanalyzed . | . . . . Part Schematics Acquired . | . . . . Parts Damaged . | . . . . Bothacking | -11 -10 -9 -9 ------------ Run | Yrd Mat Mat Min Used RIF Installer . | . . . . Robots Hacked . | . . . . Non-combat . | . . . . Combat . | . . . . Robot Hacks Applied . | . . . . Relay Couplers Released . | . . . . Fabnet Peak Effective % . | . . . . Robots Rewired . | . . . . Allies Hacked . | . . . . Hacks Repelled . | . . . . Allies | -11 -10 -9 -9 -------- Run | Yrd Mat Mat Min Total Allies . | . . . . Largest Group . | . . . . Highest-Rated Group . | . . . . Highest-Rated Ally . | . . . . Total Orders . | . . . . Ally Attacks . | . . . . Total Damage . | . . . . Kills . | . . . . Allies Corrupted . | . . . . Allies Melted . | . . . . Intel | -11 -10 -9 -9 ------- Run | Yrd Mat Mat Min Active Infowar (turns) 773 | . 89 553 131 ECM 773 | . 89 553 131 Robot Analysis Total . | . . . . Derelict Logs Recovered 1 | . . . 1 Drone Launches . | . . . . Drone Recoveries . | . . . . Exploration | -11 -10 -9 -9 ------------- Run | Yrd Mat Mat Min Turns Passed 1093 | 40 208 553 292 Spaces Moved 619 | 45 201 231 142 Core 35 | 21 . 14 . Treads 174 | . . 32 142 Legs 93 | . . 93 . Wheels 292 | 24 201 67 . Hover 25 | . . 25 . Flight . | . . . . Fastest Speed 50 | 50 80 95 160 Average Speed 117 | 66 87 128 160 Slowest Speed 300 | 80 95 300 160 Overloaded Moves . | . . . . Propulsion Burnouts . | . . . . Robots Hopped . | . . . . Potential Cave-ins . | . . . . Cave-ins Triggered . | . . . . Exploration Rate (%) 28 | 3 44 26 42 Regions Visited 3 Branch Regions 1 Pre-discovered Areas . | . . . . Known Exits Taken . | . . . . Unknown Exits Taken 3 | 1 1 1 . Scrap Searched . | . . . . Spaces Dug . | . . . . Terrain Destroyed 43 | . . 20 23 Melee . | . . . . Projectile . | . . . . AOE 43 | . . 20 23 Terrain Rammed . | . . . . Walls Destroyed . | . . . . Machines Disabled . | . . . . Actions | -11 -10 -9 -9 --------- Run | Yrd Mat Mat Min Total 859 | 55 222 392 190 Wait 96 | . 10 54 32 Move 616 | 44 200 230 142 Hop . | . . . . Pick Up 25 | 7 3 14 1 Fast Attach 6 | . . 6 . Attach 19 | 4 2 10 3 Detach . | . . . . Swap 5 | . . 4 1 Drop 6 | . . 6 . Fire 77 | . 7 60 10 Melee . | . . . . Ram 5 | . . 5 . Kick 2 | . . 2 . Crush 2 | . . 1 1 Escape Stasis . | . . . . Rewire . | . . . . Trap . | . . . . Miscellaneous . | . . . . Route ------- -11/Scrapyard -10/Materials -9/Materials (discovered 2 exits: [*Min] / [*Sto]) -9/Mines History --------- Turn | Location | Event 3 | -11/Scrapyard | Discovered new exit (range 16) 41 | -11/Scrapyard | Entered Materials 208 | -10/Materials | Discovered new exit (range 14) 249 | -10/Materials | Entered another Materials area 249 | -9/Materials | Evolved 2 slots: Utility x2 276 | -9/Materials | Discovered new exit (range 5) 314 | -9/Materials | Build established: Mutant 449 | -9/Materials | Core integrity fell below 50% 470 | -9/Materials | Lost 6 parts (1p2n1u2w) 617 | -9/Materials | Discovered new exit (range 16) 706 | -9/Materials | Lost 3 parts (1n1u1w) 765 | -9/Materials | Build established: Scavenger-Mutant 802 | -9/Materials | Entered Mines 825 | -9/Mines | Learned 8 Materials zone layouts 944 | -9/Mines | Core integrity fell below 20% 977 | -9/Mines | Lost 4 parts (1p1n1u1w) 1005 | -9/Mines | YI-UF0 nonchalantly dropped a Grenade Launcher on the ground 1063 | -9/Mines | Assembled infested the area 1094 | -9/Mines | Destroyed by D-53 Grenadier with Mini Grenade Launcher Last Messages --------------- 01082_ as-14400 destroyed. 01084_ as-92626 destroyed. 01086_ Destroyed Asb. F-torch. 01086_ as-06586 destroyed. 01086_ as-11287 destroyed. 01088_ The unstable cave ceiling collapses. 01088_ as-31292 destroyed. 01088_ as-50528 destroyed. 01088_ YI-UF0: "WHOMP!" 01088_ YI-UF0: "BWOOM!" 01090_ C-45 Heavy ARC bursts open, deploying its payload. 01090_ D-53 Grenadier unfolds itself. 01090_ Grenade Launcher destroyed. 01090_ Lgt. Treads destroyed. 01090_ K-01 Serf collects debris. 01090_ YI-UF0: "BWOOM!" 01090_ K-01 Serf destroyed. 01091_ YI-UF0: "Whaaaaaaaa!" 01094_ Ion Engine destroyed. Map ----- +----------------------------------------------------+ | ????????????????????????????????????????? | | ????????????????????????????????????????? | | ????????????????????????????????????????? | | ????????????????????????????????????????? | | ????????????????????????????????????????? | | ????????????????????????????????????????? | | ????????????????????????????????????????? | | ????????????????????????????????????????? | | ????????????????????????????????????????? | | ????????????????????????????????????????? | | ?????????????????????????? %???????????? | | ??????????????????# ?????? % #?????????? | | ??????????????????# ????? %= #?????????? | | ??????????????????? a?#### ???? ?????? | | ???????????????????aa## %*% ??? ?????? | | ???????????#???????? ???? ""????? | | ?????????## ???????? ??? """???? | | ????????## ???????## ?? """ ??? | | ????????# ??????# #? #?? | | ????????# ??????# # ## #?? | | ????????# ??????# # #??? | | ##??????# #???### #???? | | #?????# #### #???? | | # ??????# ## g #????? | | # ???????# #?????? | | # #???????# @ #??????? | | # ##??????# #??????? | | #??????## d #??????? | | ##??????# %d ##??????? | | ##?????# # ## #???????? | | #????## #######?? #???????? | | ##???# #####???????????#???????? | | ?# ###?#t ##???????????????????????? | | #?# ### ##????????????????????????? | | #?# ## #?????????????????????????? | | ### ## #?????????????????????????? | | ### ######?????????????????????????? | | ### #?####??????????????????????????????? | | #?# #???????????????????????????????????? | | ?? #???????????????????????????????????? | | ??###???????????????????????????????????? | | ????????????????????????????????????????? | | ????????????????????????????????????????? | | ????????????????????????????????????????? | | ????????????????????????????????????????? | | ????????????????????????????????????????? | | ????????????????????????????????????????? | | ????????????????????????????????????????? | | ????????????????????????????????????????? | | ????????????????????????????????????????? | +----------------------------------------------------+ Best States ------------- Heat Dissipation 38 Energy Generation 14 Energy Capacity 250 Matter Stores 300 Matter Capacity 300 Sight Range 16 Terrain Scan Density 10 ECM Strength 1 Evasion (%) 55 Targeting Accuracy 5 Recoil Reduction 2 Item Schematics ----------------- None Robot Schematics ------------------ None Fabricated ------------ Nothing Repaired ---------- Nothing Studied --------- None Alien Tech Used ----------------- None Achievements -------------- None Challenges ------------ None Game ------ Seed SiegeChromaticPod Manual? 0 Play Time 00:16:44 Cumulative 57.7 hours Start 2026.07.28 @ 20:33:15 End 2026.07.28 @ 20:48:11 Sessions 1 Manual Loads 0 Difficulty Rogue Special Mode None Game No. 100 Rogue 100 Adventurer 0 Explorer 0 Win Type - Total 0 Types 0/0/0/0/0/0/0/0/0/0 Lore% 34 Gallery% 35 Achievement% 28 Wizard Run 0 Options --------- Layout 1 ASCII 1 Keyboard 0 Movement Mouse Keybinds 0 Fullscreen 2 Font 24/Smallcaps Map View 50x35 Zoom Use 9% Tactical HUD 1 Map Filters NONE Filters NONE Steam 1 RUN: a6c9f1af-ac2c-4b06-99fb-f42fc9c28e90